fUSD/lending_fUSD_20240210
["ID","MTS","AMOUNT","RATE_DAILY","PERIOD"]
[313695560,1707587551711,-540.29,0.00041369,30]
[313695561,1707587551747,-500.0,0.00041369,30]
[313695562,1707587551786,-1846.71,0.00041369,30]
[313695563,1707587552058,-1798.65,0.00041369,30]
[313695564,1707587552095,-500.0,0.00041369,30]
[313695565,1707587552130,-1814.59,0.00041369,30]
[313695566,1707587552165,-559.68,0.00041369,30]
[313695567,1707587552200,-1308.89,0.00041369,30]
[313695568,1707587552234,-500.0,0.00041369,30]
[313695569,1707587552271,-500.0,0.00041369,30]
[313695570,1707587552307,-788.3,0.00041369,30]
[313695571,1707587552343,-309.12,0.00041369,30]
[313695572,1707587552379,-500.0,0.00041369,30]
[313695573,1707587552423,-1088.71,0.00041369,30]
[313695574,1707587552459,-531.2,0.00041369,30]
[313695575,1707587552496,-500.0,0.00041369,30]
[313695576,1707587552532,-752.34,0.00041369,30]
[313695577,1707587552568,-500.0,0.00041369,30]
[313695578,1707587552604,-2982.42,0.00041369,30]
[313695579,1707587552642,-500.0,0.00041369,30]
[313695580,1707587552679,-841.3,0.00041369,30]
[313695581,1707587552714,-1959.94,0.00041369,30]
[313695582,1707587552749,-176.0,0.0004156,53]
[313695583,1707587552785,-500.0,0.00041643,30]
[313695584,1707587552820,-735.58,0.00041643,30]
[313695585,1707587552855,-465.93695133,0.00041643,30]
[313695586,1707587552891,-1666.92,0.00041643,30]
[313695587,1707587552926,-721.72,0.00041643,30]
[313695588,1707587552960,-500.0,0.00041643,30]
[313695589,1707587552997,-540.29,0.00041643,30]
[313695590,1707587553034,-500.0,0.00041643,30]
[313695591,1707587553074,-1846.71,0.00041643,30]
[313695592,1707587553109,-1798.65,0.00041643,30]
[313695593,1707587553143,-500.0,0.00041643,30]
[313695594,1707587553178,-1814.59,0.00041643,30]
[313695595,1707587553211,-559.68,0.00041643,30]
[313695596,1707587553247,-1308.89,0.00041643,30]
[313695597,1707587553282,-500.0,0.00041643,30]
[313695598,1707587553322,-500.0,0.00041643,30]
[313695599,1707587553358,-788.3,0.00041643,30]
[313695600,1707587553397,-500.0,0.00041643,30]
[313695601,1707587553434,-1088.71,0.00041643,30]
[313695602,1707587553474,-531.2,0.00041643,30]
[313695603,1707587553511,-500.0,0.00041643,30]
[313695604,1707587553548,-752.34,0.00041643,30]
[313695605,1707587553584,-500.0,0.00041643,30]
[313695606,1707587553620,-2982.42,0.00041643,30]
[313695607,1707587553655,-500.0,0.00041643,30]
[313695608,1707587553691,-841.3,0.00041643,30]
[313695609,1707587553727,-500.0,0.00041917,30]
[313695610,1707587553762,-500.0,0.00041917,30]
[313695611,1707587553796,-735.58,0.00041917,30]
[313695612,1707587553831,-1666.92,0.00041917,30]
[313695613,1707587553866,-721.72,0.00041917,30]
[313695614,1707587553900,-430.97,0.00041917,30]
[313695615,1707587553936,-540.29,0.00041917,30]
[313695616,1707587553972,-500.0,0.00041917,30]
[313695617,1707587554008,-1846.71,0.00041917,30]
[313695618,1707587554048,-1798.65,0.00041917,30]
[313695619,1707587554084,-500.0,0.00041917,30]
[313695620,1707587554122,-1814.59,0.00041917,30]
[313695621,1707587554159,-559.68,0.00041917,30]
[313695622,1707587554196,-1308.89,0.00041917,30]
[313695623,1707587554233,-500.0,0.00041917,30]
[313695624,1707587554271,-500.0,0.00041917,30]
[313695625,1707587554309,-788.3,0.00041917,30]
[313695626,1707587554347,-500.0,0.00041917,30]
[313695627,1707587554382,-1088.71,0.00041917,30]
[313695628,1707587554419,-531.2,0.00041917,30]
[313695629,1707587554456,-500.0,0.00041917,30]
[313695630,1707587554493,-752.34,0.00041917,30]
[313695631,1707587554534,-500.0,0.00041917,30]
[313695632,1707587554571,-2982.42,0.00041917,30]
[313695633,1707587554604,-500.0,0.00041917,30]
[313695634,1707587554687,-841.3,0.00041917,30]
[313695635,1707587554725,-200.0,0.00042,49]
[313695636,1707587554763,-560.14,0.00042191,30]
[313695637,1707587554799,-500.0,0.00042191,30]
[313695638,1707587554833,-735.58,0.00042191,30]
[313695639,1707587554869,-1666.92,0.00042191,30]
[313695640,1707587554904,-721.72,0.00042191,30]
[313695641,1707587554941,-540.29,0.00042191,30]
[313695642,1707587554979,-500.0,0.00042191,30]
[313695643,1707587555015,-1846.71,0.00042191,30]
[313695644,1707587555052,-1798.65,0.00042191,30]
[313695645,1707587555088,-500.0,0.00042191,30]
[313695646,1707587555125,-1814.59,0.00042191,30]
[313695647,1707587555163,-559.68,0.00042191,30]
[313695648,1707587555211,-1308.89,0.00042191,30]
[313695649,1707587555260,-465.85,0.00042191,30]
[313695650,1707587555304,-500.0,0.00042191,30]
[313695651,1707587555347,-788.3,0.00042191,30]
[313695652,1707587555391,-500.0,0.00042191,30]
[313695653,1707587555434,-1088.71,0.00042191,30]
[313695654,1707587555475,-531.2,0.00042191,30]
[313695655,1707587555522,-500.0,0.00042191,30]
[313695656,1707587555564,-752.34,0.00042191,30]
[313695657,1707587555607,-500.0,0.00042191,30]
[313695658,1707587555648,-2982.42,0.00042191,30]
[313695659,1707587555687,-500.0,0.00042191,30]
[313695660,1707587555727,-841.3,0.00042191,30]
[313695661,1707587555767,-530.43,0.00042465,30]
[313695662,1707587555806,-500.0,0.00042465,30]
[313695663,1707587555844,-735.58,0.00042465,30]
[313695664,1707587555884,-1666.92,0.00042465,30]
[313695665,1707587555925,-721.72,0.00042465,30]
[313695666,1707587555967,-540.29,0.00042465,30]
[313695667,1707587556007,-505.05,0.00042465,30]
[313695668,1707587556047,-1846.71,0.00042465,30]
[313695669,1707587556087,-1798.65,0.00042465,30]
[313695670,1707587556125,-500.0,0.00042465,30]
[313695671,1707587556162,-1814.59,0.00042465,30]
[313695672,1707587556198,-559.68,0.00042465,30]
[313695673,1707587556236,-1308.89,0.00042465,30]
[313695674,1707587556274,-500.0,0.00042465,30]
[313695675,1707587556313,-788.3,0.00042465,30]
[313695676,1707587556353,-500.0,0.00042465,30]
[313695677,1707587556392,-1088.71,0.00042465,30]
[313695678,1707587556431,-531.2,0.00042465,30]
[313695679,1707587556474,-500.0,0.00042465,30]
[313695680,1707587556513,-752.34,0.00042465,30]
[313695681,1707587556553,-500.0,0.00042465,30]
[313695682,1707587556592,-2982.42,0.00042465,30]
[313695683,1707587556629,-500.0,0.00042465,30]
[313695684,1707587556669,-841.3,0.00042465,30]
[313695685,1707587556711,-162310.61693871,0.000425,30]
[313695686,1707587556746,-10978.13998013,0.00042546,120]
[313695687,1707587556786,-5695.60677969,0.000426,120]
[313695688,1707587556823,-6928.95223749,0.000427,30]
[313695689,1707587556860,-500.0,0.00042739,30]
[313695690,1707587556894,-500.0,0.00042739,30]
[313695691,1707587556928,-594.35,0.00042739,30]
[313695692,1707587556962,-500.0,0.00042739,30]
[313695693,1707587556997,-500.0,0.00042739,30]
[313695694,1707587557032,-500.0,0.00042739,30]
[313695695,1707587557067,-585.05290698,0.00042739,30]
[313695696,1707587557100,-500.0,0.00042739,30]
[313695697,1707587557134,-500.0,0.00042739,30]
[313695698,1707587557169,-515.6,0.00042739,30]
[313695699,1707587557204,-500.0,0.00042739,30]
[313695700,1707587557241,-525.58,0.00042739,30]
[313695701,1707587557277,-500.0,0.00042739,30]
[313695702,1707587557314,-500.0,0.00042739,30]
[313695703,1707587557352,-705.9,0.00042739,30]
[313695704,1707587557390,-415.27177985,0.00042739,30]
[313695705,1707587557428,-611.01,0.00042739,30]
[313695706,1707587557463,-765.85,0.00042739,30]
[313695707,1707587557499,-514.5,0.00042739,30]
[313695708,1707587557534,-500.0,0.00042739,30]
[313695709,1707587557570,-500.0,0.00042739,30]
[313695710,1707587557605,-363.5143552,0.00042739,30]
[313695711,1707587557639,-500.0,0.00042739,30]
[313695712,1707587557677,-500.0,0.00042739,30]
[313695713,1707587557712,-292.35,0.00042739,30]
[313695714,1707587557745,-1897.56,0.00042739,30]
[313695715,1707587557783,-555.2,0.00042739,30]
[313695716,1707587557819,-1609.58,0.00042739,30]
[313695717,1707587557853,-500.0,0.00042739,30]
[313695718,1707587557887,-1220.89,0.00042739,30]
[313695719,1707587557922,-500.0,0.00042739,30]
[313695720,1707587557956,-2197.66,0.00042739,30]
[313695721,1707587557989,-500.0,0.00042739,30]
[313695722,1707587558025,-847.82,0.00042739,30]
[313695723,1707587558060,-1079.05,0.00042739,30]
[313695724,1707587558095,-353.57093527,0.00042739,30]
[313695725,1707587558129,-500.0,0.00042739,30]
[313695726,1707587558163,-500.0,0.00042739,30]
[313695727,1707587558197,-855.61,0.00042739,30]
[313695728,1707587558234,-527.2,0.00042739,30]
[313695729,1707587558269,-500.0,0.00042739,30]
[313695730,1707587558306,-500.0,0.00042739,30]
[313695731,1707587558346,-507.56,0.00042739,30]
[313695732,1707587558386,-500.0,0.00042739,30]
[313695733,1707587558438,-518.14103143,0.00042739,30]
[313695734,1707587558475,-500.0,0.00042739,30]
[313695735,1707587558513,-695.9,0.00042739,30]
[313695736,1707587558548,-639.84,0.00042739,30]
[313695737,1707587558582,-1000.0,0.00042739,120]
[313695738,1707587558614,-500.0,0.00042739,30]
[313695739,1707587558648,-523.41,0.00042739,30]
[313695740,1707587558839,-1209.67,0.00042739,30]
[313695741,1707587558878,-727.64,0.00042739,30]
[313695742,1707587558917,-500.0,0.00042739,30]
[313695743,1707587558954,-1695.73,0.00042739,30]
[313695744,1707587558989,-500.0,0.00042739,30]
[313695745,1707587559026,-636.9,0.00042739,30]
[313695746,1707587559062,-552.79,0.00042739,30]
[313695747,1707587559097,-822.03,0.00042739,30]
[313695748,1707587559132,-500.0,0.00042739,30]
[313695749,1707587559168,-519.84,0.00042739,30]
[313695750,1707587559203,-500.0,0.00042739,30]
[313695751,1707587559239,-520.2,0.00042739,30]
[313695752,1707587559277,-726.91,0.00042739,30]
[313695753,1707587559315,-500.0,0.00042739,30]
[313695754,1707587559352,-500.0,0.00042739,30]
[313695755,1707587559392,-500.0,0.00042739,30]
[313695756,1707587559429,-1279.88,0.00042739,30]
[313695757,1707587559469,-898.34,0.00042739,30]
[313695758,1707587559505,-1568.74,0.00042739,30]
[313695759,1707587559541,-605.13,0.00042739,30]
[313695760,1707587559577,-1667.99,0.00042739,30]
[313695761,1707587559611,-1558.57,0.00042739,30]
[313695762,1707587559646,-500.0,0.00042739,30]
[313695763,1707587559681,-594.19,0.00042739,30]
[313695764,1707587559717,-798.83,0.00042739,30]
[313695765,1707587559754,-1157.65,0.00042739,30]
[313695766,1707587559798,-626.18,0.00042739,30]
[313695767,1707587559836,-571.81,0.00042739,30]
[313695768,1707587559872,-565.78,0.00042739,30]
[313695769,1707587559911,-500.0,0.00042739,30]
[313695770,1707587559947,-757.98,0.00042739,30]
[313695771,1707587559983,-500.0,0.00042739,30]
[313695772,1707587560018,-500.0,0.00042739,30]
[313695773,1707587560051,-756.2,0.00042739,30]
[313695774,1707587560088,-1086.17,0.00042739,30]
[313695775,1707587560124,-5736.87,0.00042739,30]
[313695776,1707587560162,-500.0,0.00042739,30]
[313695777,1707587560201,-156.64,0.00042739,30]
[313695778,1707587560240,-500.0,0.00042739,30]
[313695779,1707587560277,-673.05,0.00042739,30]
[313695780,1707587560313,-2426.36,0.00042739,30]
[313695781,1707587560348,-1128.55,0.00042739,30]
[313695782,1707587560385,-787.47,0.00042739,30]
[313695783,1707587560421,-500.0,0.00042739,30]
[313695784,1707587560462,-658.85,0.00042739,30]
[313695785,1707587560500,-693.78,0.00042739,30]
[313695786,1707587560538,-500.0,0.00042739,30]
[313695787,1707587560576,-735.58,0.00042739,30]
[313695788,1707587560612,-1666.92,0.00042739,30]
[313695789,1707587560649,-721.72,0.00042739,30]
[313695790,1707587560686,-540.29,0.00042739,30]
[313695791,1707587560726,-1846.71,0.00042739,30]
[313695792,1707587560763,-1798.65,0.00042739,30]
[313695793,1707587560800,-500.0,0.00042739,30]
[313695794,1707587560836,-1814.59,0.00042739,30]
[313695795,1707587560871,-559.68,0.00042739,30]
[313695796,1707587560907,-1308.89,0.00042739,30]
[313695797,1707587560944,-500.0,0.00042739,30]
[313695798,1707587560981,-788.3,0.00042739,30]
[313695799,1707587561017,-500.0,0.00042739,30]
[313695800,1707587561051,-1088.71,0.00042739,30]
[313695801,1707587561086,-531.2,0.00042739,30]
[313695802,1707587561123,-500.0,0.00042739,30]
[313695803,1707587561160,-752.34,0.00042739,30]
[313695804,1707587561197,-500.0,0.00042739,30]
[313695805,1707587561234,-2982.42,0.00042739,30]
[313695806,1707587561267,-500.0,0.00042739,30]
[313695807,1707587561302,-200.0,0.000428,30]
[313695808,1707587561337,-546856.81531947,0.000428,30]
[313695809,1707587561372,-803.61287876,0.00042888,32]
[313695810,1707587561409,-392675.33774274,0.000429,30]
[313695811,1707587561447,-90000.0,0.000429,30]
[313695812,1707587561481,-1311.0,0.0004298,120]
[313695813,1707587561517,-810.60606451,0.00043,30]
[313695814,1707587561551,-35895.82175,0.00043,30]
[313695815,1707587561584,-17600.0,0.00043,30]
[313695816,1707587561618,-20000.0,0.00043,30]
[313695817,1707587561654,-14943.0,0.00043,60]
[313695818,1707587561688,-1336.14338549,0.00043,30]
[313695819,1707587561722,-20000.0,0.00043,30]
[313695820,1707587561759,-1000000.0,0.00043,30]
[313695821,1707587561792,-207.81580835,0.00043,120]
[313695822,1707587561827,-1006.0,0.00043,30]
[313695823,1707587561860,-2380.79570776,0.00043,90]
[313695824,1707587561895,-418.95806218,0.00043013,30]
[313695825,1707587561929,-500.0,0.00043013,30]
[313695826,1707587561962,-594.35,0.00043013,30]
[313695827,1707587562248,-500.0,0.00043013,30]
[313695828,1707587562293,-261.56843155,0.00043013,30]
[313695829,1707587562330,-500.0,0.00043013,30]
[313695830,1707587562365,-500.0,0.00043013,30]
[313695831,1707587562400,-515.6,0.00043013,30]
[313695832,1707587562436,-500.0,0.00043013,30]
[313695833,1707587562472,-525.58,0.00043013,30]
[313695834,1707587562507,-500.0,0.00043013,30]
[313695835,1707587562541,-500.0,0.00043013,30]
[313695836,1707587562576,-705.9,0.00043013,30]
[313695837,1707587562611,-611.01,0.00043013,30]
[313695838,1707587562646,-765.85,0.00043013,30]
[313695839,1707587562683,-514.5,0.00043013,30]
[313695840,1707587562718,-414.81463558,0.00043013,30]
[313695841,1707587562752,-500.0,0.00043013,30]
[313695842,1707587562784,-500.0,0.00043013,30]
[313695843,1707587562818,-500.0,0.00043013,30]
[313695844,1707587562853,-1897.56,0.00043013,30]
[313695845,1707587562887,-555.2,0.00043013,30]
[313695846,1707587562922,-1609.58,0.00043013,30]
[313695847,1707587562957,-500.0,0.00043013,30]
[313695848,1707587563031,-1220.89,0.00043013,30]
[313695849,1707587563066,-500.0,0.00043013,30]
[313695850,1707587563106,-2197.66,0.00043013,30]
[313695851,1707587563142,-500.0,0.00043013,30]
[313695852,1707587563176,-847.82,0.00043013,30]
[313695853,1707587563214,-1079.05,0.00043013,30]
[313695854,1707587563249,-500.0,0.00043013,30]
[313695855,1707587563284,-500.0,0.00043013,30]
[313695856,1707587563320,-855.61,0.00043013,30]
[313695857,1707587563355,-527.2,0.00043013,30]
[313695858,1707587563391,-524.45824618,0.00043013,30]
[313695859,1707587563428,-500.0,0.00043013,30]
[313695860,1707587563465,-507.56,0.00043013,30]
[313695861,1707587563508,-500.0,0.00043013,30]
[313695862,1707587563542,-500.0,0.00043013,30]
[313695863,1707587563577,-695.9,0.00043013,30]
[313695864,1707587563611,-639.84,0.00043013,30]
[313695865,1707587563644,-1000.0,0.00043013,120]
[313695866,1707587563682,-500.0,0.00043013,30]
[313695867,1707587563718,-523.41,0.00043013,30]
[313695868,1707587563752,-1209.67,0.00043013,30]
[313695869,1707587563787,-727.64,0.00043013,30]
[313695870,1707587563822,-482.76787361,0.00043013,30]
[313695871,1707587563857,-1695.73,0.00043013,30]
[313695872,1707587563891,-500.0,0.00043013,30]
[313695873,1707587563927,-636.9,0.00043013,30]
[313695874,1707587563962,-552.79,0.00043013,30]
[313695875,1707587563996,-822.03,0.00043013,30]
[313695876,1707587564031,-500.0,0.00043013,30]
[313695877,1707587564065,-519.84,0.00043013,30]
[313695878,1707587564098,-500.0,0.00043013,30]
[313695879,1707587564133,-520.2,0.00043013,30]
[313695880,1707587564168,-726.91,0.00043013,30]
[313695881,1707587564205,-500.0,0.00043013,30]
[313695882,1707587564240,-302.8,0.00043013,30]
[313695883,1707587564275,-500.0,0.00043013,30]
[313695884,1707587564312,-1279.88,0.00043013,30]
[313695885,1707587564350,-898.34,0.00043013,30]
[313695886,1707587564386,-1568.74,0.00043013,30]
[313695887,1707587564422,-605.13,0.00043013,30]
[313695888,1707587564460,-1667.99,0.00043013,30]
[313695889,1707587564498,-1558.57,0.00043013,30]
[313695890,1707587564534,-442.96709448,0.00043013,30]
[313695891,1707587564568,-594.19,0.00043013,30]
[313695892,1707587564602,-798.83,0.00043013,30]
[313695893,1707587564636,-1157.65,0.00043013,30]
[313695894,1707587564678,-626.18,0.00043013,30]
[313695895,1707587564717,-571.81,0.00043013,30]
[313695896,1707587564754,-565.78,0.00043013,30]
[313695897,1707587564793,-500.0,0.00043013,30]
[313695898,1707587564829,-757.98,0.00043013,30]
[313695899,1707587564913,-500.0,0.00043013,30]
[313695900,1707587564947,-500.0,0.00043013,30]
[313695901,1707587564980,-756.2,0.00043013,30]
[313695902,1707587565014,-1086.17,0.00043013,30]
[313695903,1707587565050,-5736.87,0.00043013,30]
[313695904,1707587565084,-500.0,0.00043013,30]
[313695905,1707587565118,-500.0,0.00043013,30]
[313695906,1707587565153,-673.05,0.00043013,30]
[313695907,1707587565188,-2426.36,0.00043013,30]
[313695908,1707587565225,-1128.55,0.00043013,30]
[313695909,1707587565263,-787.47,0.00043013,30]
[313695910,1707587565301,-500.0,0.00043013,30]
[313695911,1707587565339,-658.85,0.00043013,30]
[313695912,1707587565376,-693.78,0.00043013,30]
[313695913,1707587565412,-500.0,0.00043013,30]
[313695914,1707587565448,-735.58,0.00043013,30]
[313695915,1707587565486,-1666.92,0.00043013,30]
[313695916,1707587565522,-721.72,0.00043013,30]
[313695917,1707587565557,-540.29,0.00043013,30]
[313695918,1707587565594,-1846.71,0.00043013,30]
[313695919,1707587565629,-1798.65,0.00043013,30]
[313695920,1707587565668,-500.0,0.00043013,30]
[313695921,1707587565708,-1814.59,0.00043013,30]
[313695922,1707587565743,-559.68,0.00043013,30]
[313695923,1707587565781,-1308.89,0.00043013,30]
[313695924,1707587565815,-500.0,0.00043013,30]
[313695925,1707587565852,-788.3,0.00043013,30]
[313695926,1707587565888,-500.0,0.00043013,30]
[313695927,1707587565922,-1088.71,0.00043013,30]
[313695928,1707587565957,-531.2,0.00043013,30]
[313695929,1707587565997,-500.0,0.00043013,30]
[313695930,1707587566038,-752.34,0.00043013,30]
[313695931,1707587566078,-426.12444541,0.00043013,30]
[313695932,1707587566115,-2982.42,0.00043013,30]
[313695933,1707587566153,-500.0,0.00043013,30]
[313695934,1707587566191,-2622.21069093,0.00043111,30]
[313695935,1707587566230,-247.30398579,0.000432,30]
[313695936,1707587566269,-500.0,0.00043287,30]
[313695937,1707587566308,-594.35,0.00043287,30]
[313695938,1707587566347,-500.0,0.00043287,30]
[313695939,1707587566386,-500.0,0.00043287,30]
[313695940,1707587566427,-515.6,0.00043287,30]
[313695941,1707587566469,-590.29948712,0.00043287,30]
[313695942,1707587566511,-525.58,0.00043287,30]
[313695943,1707587566552,-509.52,0.00043287,30]
[313695944,1707587566588,-500.0,0.00043287,30]
[313695945,1707587566625,-705.9,0.00043287,30]
[313695946,1707587566664,-611.01,0.00043287,30]
[313695947,1707587566707,-765.85,0.00043287,30]
[313695948,1707587566747,-514.5,0.00043287,30]
[313695949,1707587566788,-355.6,0.00043287,30]
[313695950,1707587566826,-500.0,0.00043287,30]
[313695951,1707587566869,-500.0,0.00043287,30]
[313695952,1707587566906,-1897.56,0.00043287,30]
[313695953,1707587566942,-555.2,0.00043287,30]
[313695954,1707587566979,-1609.58,0.00043287,30]
[313695955,1707587567015,-500.0,0.00043287,30]
[313695956,1707587567052,-1220.89,0.00043287,30]
[313695957,1707587567087,-500.0,0.00043287,30]
[313695958,1707587567124,-2197.66,0.00043287,30]
[313695959,1707587567160,-500.0,0.00043287,30]
[313695960,1707587567198,-847.82,0.00043287,30]
[313695961,1707587567238,-1079.05,0.00043287,30]
[313695962,1707587567281,-500.0,0.00043287,30]
[313695963,1707587567324,-855.61,0.00043287,30]
[313695964,1707587567367,-527.2,0.00043287,30]
[313695965,1707587567409,-560.12583107,0.00043287,30]
[313695966,1707587567452,-507.56,0.00043287,30]
[313695967,1707587567492,-500.0,0.00043287,30]
[313695968,1707587567532,-481.35427338,0.00043287,30]
[313695969,1707587567575,-695.9,0.00043287,30]
[313695970,1707587567614,-639.84,0.00043287,30]
[313695971,1707587567652,-445.27451498,0.00043287,120]
[313695972,1707587567690,-500.0,0.00043287,30]
[313695973,1707587567727,-523.41,0.00043287,30]
[313695974,1707587567768,-1209.67,0.00043287,30]
[313695975,1707587567805,-727.64,0.00043287,30]
[313695976,1707587567841,-1695.73,0.00043287,30]
[313695977,1707587567877,-188.25365378,0.00043287,30]
[313695978,1707587567911,-636.9,0.00043287,30]
[313695979,1707587567948,-552.79,0.00043287,30]
[313695980,1707587567983,-822.03,0.00043287,30]
[313695981,1707587568018,-500.0,0.00043287,30]
[313695982,1707587568053,-519.84,0.00043287,30]
[313695983,1707587568087,-500.0,0.00043287,30]
[313695984,1707587568121,-520.2,0.00043287,30]
[313695985,1707587568157,-726.91,0.00043287,30]
[313695986,1707587568192,-500.0,0.00043287,30]
[313695987,1707587568226,-500.0,0.00043287,30]
[313695988,1707587568263,-898.34,0.00043287,30]
[313695989,1707587568298,-1279.88,0.00043287,30]
[313695990,1707587568335,-1568.74,0.00043287,30]
[313695991,1707587568374,-605.13,0.00043287,30]
[313695992,1707587568412,-1667.99,0.00043287,30]
[313695993,1707587568449,-1558.57,0.00043287,30]
[313695994,1707587568486,-594.19,0.00043287,30]
[313695995,1707587568523,-798.83,0.00043287,30]
[313695996,1707587568559,-1157.65,0.00043287,30]
[313695997,1707587568593,-626.18,0.00043287,30]
[313695998,1707587568627,-571.81,0.00043287,30]
[313695999,1707587568662,-565.78,0.00043287,30]
[313696000,1707587568704,-315.94,0.00043287,30]
[313696001,1707587568739,-757.98,0.00043287,30]
[313696002,1707587568775,-500.0,0.00043287,30]
[313696003,1707587568809,-500.0,0.00043287,30]
[313696004,1707587568845,-756.2,0.00043287,30]
[313696005,1707587568880,-1086.17,0.00043287,30]
[313696006,1707587569030,-5736.87,0.00043287,30]
[313696007,1707587569071,-500.0,0.00043287,30]
[313696008,1707587569111,-517.30307913,0.00043287,30]
[313696009,1707587569148,-673.05,0.00043287,30]
[313696010,1707587569186,-2426.36,0.00043287,30]
[313696011,1707587569227,-1128.55,0.00043287,30]
[313696012,1707587569270,-787.47,0.00043287,30]
[313696013,1707587569312,-500.0,0.00043287,30]
[313696014,1707587569352,-658.85,0.00043287,30]
[313696015,1707587569393,-693.78,0.00043287,30]
[313696016,1707587569437,-500.0,0.00043287,30]
[313696017,1707587569478,-735.58,0.00043287,30]
[313696018,1707587569517,-1666.92,0.00043287,30]
[313696019,1707587569554,-721.72,0.00043287,30]
[313696020,1707587569591,-540.29,0.00043287,30]
[313696021,1707587569627,-1846.71,0.00043287,30]
[313696022,1707587569664,-1798.65,0.00043287,30]
[313696023,1707587569703,-500.0,0.00043287,30]
[313696024,1707587569738,-1814.59,0.00043287,30]
[313696025,1707587569773,-559.68,0.00043287,30]
[313696026,1707587569807,-1308.89,0.00043287,30]
[313696027,1707587569841,-500.0,0.00043287,30]
[313696028,1707587569876,-788.3,0.00043287,30]
[313696029,1707587569912,-500.0,0.00043287,30]
[313696030,1707587569947,-1088.71,0.00043287,30]
[313696031,1707587569983,-531.2,0.00043287,30]
[313696032,1707587570021,-500.0,0.00043287,30]
[313696033,1707587570064,-752.34,0.00043287,30]
[313696034,1707587570103,-2982.42,0.00043287,30]
[313696035,1707587570140,-500.0,0.00043287,30]
[313696036,1707587570178,-771.56622678,0.000433,30]
[313696037,1707587570217,-4493.7244921,0.00043434,36]
[313696038,1707587570257,-933169.87018115,0.000435,30]
[313696039,1707587572561,150.0,0.00021888,2]
[313696040,1707587574759,2000.0,0.00021814,2]
[313696041,1707587574934,643.44,0.00019896,2]
[313696042,1707587574968,164.96,0.00021814,2]
[313696043,1707587576160,-207.0,0.00043095,33]
[313696044,1707587576207,-30000.0,0.000435,120]
[313696045,1707587576253,-32664.43745914,0.0004355,45]
[313696046,1707587576304,-367715.31,0.0004369,120]
[313696047,1707587576357,-311.73570975,0.0004398,118]
[313696048,1707587576400,-1311.0,0.0004398,120]
[313696049,1707587576445,-10000.0,0.00044,39]
[313696050,1707587576487,-55144.0,0.00044,120]
[313696051,1707587576528,-327.0,0.00044,120]
[313696052,1707587576568,-300.0,0.00044,44]
[313696053,1707587576607,-1688.22842605,0.00044,120]
[313696054,1707587576644,-30000.0,0.00044,120]
[313696055,1707587576687,-200.0,0.00044,57]
[313696056,1707587576732,-1092.0,0.000442,50]
[313696057,1707587576795,-153.05381951,0.00044384,60]
[313696058,1707587576851,-10000.0,0.0004449,41]
[313696059,1707587576885,-30000.0,0.000445,120]